bitfinex/quotes_BTCUSD_20230118
["timestamp","ask_amount","ask_price","bid_price","bid_amount"]
[1674001993573,0.01888057,21214.0,21213.0,1.63249359]
[1674001993841,0.01888057,21214.0,21213.0,1.54020159]
[1674001994114,0.01888057,21214.0,21213.0,1.16079259]
[1674001994881,0.01888057,21214.0,21213.0,1.034526]
[1674001996430,0.34012057,21214.0,21213.0,1.034526]
[1674001996695,0.01888057,21214.0,21213.0,1.334526]
[1674001997221,0.01888057,21214.0,21213.0,1.034526]
[1674001997772,0.01888057,21214.0,21213.0,0.092]
[1674001997773,0.21066203,21214.0,21213.0,0.092]
[1674001998289,0.49177608,21214.0,21213.0,0.092]
[1674001998548,0.41542057,21214.0,21213.0,0.092]
[1674001998827,0.41647608,21214.0,21213.0,0.092]
[1674001999083,0.41647608,21214.0,21211.0,0.57901693]
[1674001999084,0.41542057,21214.0,21211.0,0.57901693]
[1674001999389,0.09418057,21214.0,21213.0,6.101e-05]
[1674001999674,0.09418057,21214.0,21213.0,0.007]
[1674001999675,0.42342057,21214.0,21213.0,0.007]
[1674001999931,0.41542057,21214.0,21211.0,1.05043193]
[1674002000214,0.32124,21213.0,21212.0,0.471431]
[1674002000472,0.32124,21213.0,21212.0,0.47149201]
[1674002000765,0.32124,21213.0,21212.0,0.771431]
[1674002001038,0.02688057,21214.0,21212.0,1.242862]
[1674002001294,0.02688057,21214.0,21213.0,0.3]
[1674002001563,0.02688057,21214.0,21213.0,1.83429689]
[1674002002113,0.81051969,21223.0,21213.0,1.83429689]
[1674002002114,0.75407298,21223.0,21213.0,1.83429689]
[1674002002371,1.30202109,21223.0,21214.0,0.44125748]
[1674002002628,1.30202109,21223.0,21216.0,1.413978]
[1674002002629,0.37913924,21223.0,21216.0,1.413978]
[1674002002908,0.0752,21223.0,21217.0,0.65627055]
[1674002003175,0.36043734,21223.0,21218.0,0.942562]
[1674002003468,0.5981,21224.0,21219.0,0.3]
[1674002003731,0.5981,21224.0,21220.0,0.471242]
[1674002003732,0.0759,21224.0,21220.0,0.471242]
[1674002003988,0.41496458,21226.0,21221.0,0.3]
[1674002004256,0.36317248,21224.0,21222.0,0.942403]
[1674002004532,0.32124,21223.0,21222.0,0.471198]
[1674002005596,0.32124,21223.0,21222.0,0.942407]
[1674002005854,0.32124,21223.0,21222.0,0.971407]
[1674002006392,0.32124,21223.0,21222.0,1.271407]
[1674002006650,0.7836137,21227.0,21222.0,0.329]
[1674002006907,0.7836137,21227.0,21222.0,0.971407]
[1674002006908,0.29999779,21225.0,21222.0,0.971407]
[1674002007163,0.43205573,21223.0,21220.0,0.471242]
[1674002007476,0.58776595,21222.0,21219.0,0.47126]
[1674002007742,0.32124,21221.0,21217.0,0.59023174]
[1674002008009,0.0035,21222.0,21218.0,0.471297]
[1674002008295,0.39714,21221.0,21219.0,0.09689363]
[1674002008577,0.32124,21220.0,21219.0,0.56816063]
[1674002008862,0.32124,21220.0,21219.0,1.03943563]
[1674002009125,0.0759,21221.0,21219.0,1.03943563]
[1674002009380,0.0759,21221.0,21220.0,0.3]
[1674002009667,0.39714,21221.0,21220.0,0.3]
[1674002009925,0.39714,21221.0,21220.0,0.942506]
[1674002010704,0.39714,21221.0,21219.0,0.57516063]
[1674002010996,0.06662595,21221.0,21220.0,0.007]
[1674002011310,0.32124,21221.0,21220.0,0.007]
[1674002011564,0.32124,21221.0,21220.0,0.471253]
[1674002011819,0.39714,21221.0,21217.0,0.471305]
[1674002012084,0.32229551,21220.0,21219.0,0.007]
[1674002012613,0.32124,21220.0,21219.0,0.007]
[1674002012866,0.51196595,21220.0,21219.0,0.007]
[1674002013156,0.95334851,21220.0,21217.0,0.11799746]
[1674002013425,0.95334851,21220.0,21216.0,0.09056652]
[1674002013426,0.01347783,21218.0,21216.0,0.09056652]
[1674002013724,0.01347783,21218.0,21214.0,0.471369]
[1674002013725,0.0753,21216.0,21214.0,0.471369]
[1674002014016,0.39714,21215.0,21214.0,0.59513594]
[1674002014818,0.39714,21215.0,21212.0,0.58400656]
[1674002015091,0.0759,21213.0,21212.0,0.11258256]
[1674002015402,0.32124,21213.0,21212.0,0.94315619]
[1674002015658,0.0758,21215.0,21213.0,0.10608657]
[1674002015919,0.01347783,21218.0,21212.0,0.94315619]
[1674002015920,0.0752,21217.0,21215.0,0.10507218]
[1674002016466,0.32124,21216.0,21215.0,0.10507218]
[1674002017011,0.47194,21216.0,21214.0,0.471364]
[1674002017263,0.42903777,21216.0,21215.0,0.001]
[1674002017515,1.30562077,21216.0,21215.0,0.2]
[1674002017771,1.39062077,21216.0,21215.0,0.201]
[1674002018066,1.77696277,21216.0,21215.0,0.2]
[1674002018326,1.86196277,21216.0,21215.0,0.2]
[1674002018615,1.03813751,21216.0,21215.0,0.2]
[1674002018887,0.56679551,21216.0,21215.0,0.2]
[1674002019152,0.32124,21216.0,21215.0,0.20129815]
[1674002019442,0.40624,21216.0,21215.0,0.2]
[1674002019690,0.29124,21216.0,21215.0,0.972364]
[1674002019986,0.37062078,21218.0,21215.0,1.442728]
[1674002020232,0.085,21216.0,21215.0,1.57413985]
[1674002020501,0.08867783,21218.0,21215.0,1.442728]
[1674002020771,0.085,21216.0,21215.0,1.443728]
[1674002021034,0.406218,21216.0,21215.0,1.442728]
[1674002021287,0.085,21216.0,21215.0,1.442728]
[1674002022042,0.151,21216.0,21215.0,1.443728]
[1674002022835,0.151,21216.0,21215.0,1.55241703]
[1674002023112,0.151,21216.0,21215.0,2.11911855]
[1674002023426,0.151,21216.0,21215.0,2.26911855]
[1674002023955,0.151,21216.0,21215.0,1.75732003]
[1674002025015,0.066,21216.0,21215.0,1.55141703]
[1674002025017,0.01347783,21218.0,21215.0,1.55141703]
[1674002025281,0.007,21216.0,21215.0,1.56441703]
[1674002025794,0.01347783,21218.0,21215.0,1.75631803]
[1674002026048,0.01347783,21218.0,21215.0,1.55141703]
[1674002026296,0.02047783,21218.0,21215.0,1.56441703]
[1674002026551,0.02047783,21218.0,21216.0,0.204891]
[1674002026552,0.01347783,21218.0,21216.0,0.204891]
[1674002026806,0.40874902,21221.0,21217.0,1.24264]
[1674002027065,0.00105551,21220.0,21217.0,1.37305185]
[1674002027321,0.00105551,21220.0,21217.0,0.94264]
[1674002027562,0.397118,21219.0,21217.0,0.94264]
[1674002028071,0.321218,21218.0,21217.0,0.94264]
[1674002028587,0.321218,21218.0,21217.0,1.24264]
[1674002029074,0.0759,21219.0,21217.0,1.04907087]
[1674002029075,0.0839,21219.0,21217.0,1.04907087]
[1674002029343,0.0759,21219.0,21217.0,0.47132]
[1674002029607,0.406618,21218.0,21217.0,0.47132]
[1674002029874,0.406618,21218.0,21215.0,0.671362]
[1674002029875,0.406618,21218.0,21215.0,0.671346]
[1674002030094,0.43412595,21218.0,21217.0,0.013]
[1674002030344,0.490318,21218.0,21217.0,0.013]
[1674002030847,0.482318,21218.0,21216.0,0.08669605]
[1674002031093,0.67136046,21219.0,21217.0,0.47832]
[1674002031362,0.67136046,21219.0,21217.0,0.94264]
[1674002031363,0.396918,21218.0,21217.0,0.94264]
[1674002031633,0.405918,21218.0,21217.0,0.48432]
[1674002031889,0.405918,21218.0,21217.0,0.013]
[1674002032155,0.41497351,21218.0,21217.0,0.013]
[1674002032414,0.41497351,21218.0,21216.0,0.55801805]
[1674002032415,0.39797351,21218.0,21216.0,0.55801805]
[1674002032656,0.23575551,21218.0,21216.0,0.55801805]
[1674002032907,0.396518,21217.0,21215.0,0.671346]
[1674002033166,0.321218,21216.0,21215.0,0.671346]
[1674002034816,0.321218,21216.0,21215.0,0.661346]
[1674002035113,0.323218,21216.0,21215.0,0.668346]
[1674002035918,0.323218,21216.0,21215.0,0.197]
[1674002037522,0.323218,21216.0,21215.0,0.19]
[1674002037523,0.321218,21216.0,21215.0,0.19]
[1674002037777,0.321218,21216.0,21215.0,0.191]
[1674002037778,0.391218,21216.0,21215.0,0.191]
[1674002038286,0.93846,21216.0,21215.0,0.191]
[1674002039324,1.494202,21216.0,21215.0,0.191]
[1674002040087,1.60741529,21216.0,21215.0,0.191]
[1674002040591,1.77723522,21216.0,21215.0,0.191]
[1674002040865,1.60741529,21216.0,21215.0,0.191]
[1674002041363,1.66402193,21216.0,21215.0,0.191]
[1674002041612,2.08923326,21216.0,21215.0,0.191]
[1674002041860,2.20286326,21216.0,21215.0,0.191]
[1674002042122,2.35286326,21216.0,21215.0,0.191]
[1674002042670,2.03982849,21216.0,21215.0,0.191]
[1674002043411,2.03977337,21216.0,21215.0,0.191]
[1674002043653,2.27977337,21216.0,21215.0,0.191]
[1674002044187,2.2797739,21216.0,21215.0,0.191]
[1674002044445,3.12201812,21216.0,21215.0,0.191]
[1674002044712,0.16770826,21214.0,21213.0,0.0005676]
[1674002044995,2.26945693,21214.0,21213.0,0.0005676]
[1674002045269,2.4316429,21214.0,21213.0,0.0005676]
[1674002045786,2.6108265,21214.0,21213.0,0.0005676]
[1674002046049,3.16077519,21214.0,21213.0,0.0005676]
[1674002046337,3.0480396,21214.0,21213.0,0.0005676]
[1674002046642,5.64419554,21214.0,21213.0,0.0005676]
[1674002046896,5.3784223,21214.0,21213.0,0.0005676]
[1674002047152,5.2874223,21214.0,21213.0,0.0005676]
[1674002047417,5.60384493,21214.0,21213.0,0.0005676]
[1674002047693,3.47737795,21214.0,21213.0,0.0005676]
[1674002047972,2.52295881,21214.0,21213.0,0.0005676]
[1674002048234,2.50125383,21214.0,21213.0,0.0005676]
[1674002048492,2.32030934,21214.0,21213.0,0.0005676]
[1674002048743,2.90314994,21214.0,21213.0,0.0005676]
[1674002048977,2.81214994,21214.0,21213.0,0.0005676]
[1674002049225,2.98121012,21214.0,21213.0,0.0005676]
[1674002049489,3.16952757,21214.0,21213.0,0.0005676]
[1674002049742,3.26052757,21214.0,21213.0,0.0005676]
[1674002050758,3.80044357,21214.0,21213.0,0.0005676]
[1674002051019,3.80047287,21214.0,21213.0,0.0005676]
[1674002051264,3.26043951,21214.0,21213.0,0.0005676]
[1674002051530,3.51836655,21214.0,21213.0,0.0005676]
[1674002051775,3.72402587,21214.0,21213.0,0.0005676]
[1674002052269,4.33570871,21214.0,21213.0,0.0005676]
[1674002052516,4.64369252,21214.0,21213.0,0.0005676]
[1674002052775,3.70064011,21214.0,21213.0,0.0005676]
[1674002053031,4.0868418,21214.0,21213.0,0.0005676]
[1674002053291,5.15272024,21214.0,21213.0,0.0005676]
[1674002053565,5.06171907,21214.0,21213.0,0.0005676]
[1674002053813,3.86965153,21214.0,21213.0,0.0005676]
[1674002054068,3.83530007,21214.0,21213.0,0.0005676]
[1674002054393,3.18273661,21214.0,21213.0,0.0005676]
[1674002054652,3.18273661,21214.0,21213.0,0.13097945]
[1674002054653,1.39609642,21214.0,21213.0,0.13097945]
[1674002054923,1.39609642,21214.0,21213.0,0.0005676]
[1674002055187,1.30509642,21214.0,21213.0,0.0005676]
[1674002055791,1.51787994,21214.0,21213.0,0.0005676]
[1674002056044,1.30509642,21214.0,21213.0,0.0005676]
[1674002056565,1.31359642,21214.0,21213.0,0.0005676]
[1674002056808,1.55459642,21214.0,21213.0,0.0005676]
[1674002057302,1.40459642,21214.0,21213.0,0.0005676]
[1674002057556,1.31359642,21214.0,21213.0,0.0005676]
[1674002057843,2.1933232,21214.0,21213.0,0.0005676]
[1674002058111,2.17907871,21214.0,21213.0,0.0005676]
[1674002058356,2.27007871,21214.0,21213.0,0.0005676]
[1674002058609,2.29168141,21214.0,21213.0,0.0005676]
[1674002059421,2.4605897,21214.0,21213.0,0.0005676]
[1674002059915,2.4605454,21214.0,21213.0,0.0005676]
[1674002060177,2.12429633,21214.0,21213.0,0.0005676]
[1674002060435,2.18064622,21214.0,21213.0,0.0005676]
[1674002060697,2.49686219,21214.0,21213.0,0.0005676]
[1674002060951,2.97406388,21214.0,21213.0,0.0005676]
[1674002061199,3.52366605,21214.0,21213.0,0.0005676]
[1674002061450,3.65475776,21214.0,21213.0,0.0005676]
[1674002061709,4.2706122,21214.0,21213.0,0.0005676]
[1674002061964,3.9706122,21214.0,21213.0,0.0005676]
[1674002062231,3.2494801,21214.0,21213.0,0.0005676]
[1674002062491,3.1368106,21214.0,21213.0,0.0005676]
[1674002062746,3.2494801,21214.0,21213.0,0.0005676]
[1674002063299,3.1584801,21214.0,21213.0,0.0005676]
[1674002063525,2.93326413,21214.0,21213.0,0.0005676]
[1674002063802,3.2494801,21214.0,21213.0,0.0005676]
[1674002064322,3.50490332,21214.0,21213.0,0.0005676]
[1674002064583,0.00030256,21212.0,21208.0,0.00322336]
[1674002064845,0.0759,21209.0,21208.0,0.00322336]
[1674002065104,1.340117,21209.0,21208.0,0.00322336]
[1674002065369,1.348617,21209.0,21208.0,0.00322336]
[1674002065939,1.272717,21209.0,21208.0,0.00332055]
[1674002066150,1.272717,21209.0,21208.0,0.00322336]
[1674002066402,1.363717,21209.0,21208.0,0.00322336]
[1674002066656,1.272717,21209.0,21208.0,0.00322336]
[1674002066909,1.363717,21209.0,21208.0,0.00322336]
[1674002067166,1.363717,21209.0,21208.0,0.00332055]
[1674002067167,0.420723,21209.0,21208.0,0.00332055]
[1674002067424,0.412223,21209.0,21208.0,0.00332055]
[1674002067702,0.412223,21209.0,21208.0,0.00322336]
[1674002068215,0.412223,21209.0,21208.0,0.00332055]
[1674002068487,1.44047251,21209.0,21208.0,0.00322336]
[1674002069263,1.363717,21209.0,21208.0,0.00322336]
[1674002069525,0.80122,21209.0,21208.0,0.00322336]
[1674002069867,0.329723,21209.0,21208.0,0.00322336]
[1674002070296,0.412223,21209.0,21208.0,0.00322336]
[1674002070560,0.20377664,21208.0,21207.0,0.471537]
[1674002070819,0.52499964,21208.0,21207.0,0.471537]
[1674002071327,0.52499964,21208.0,21206.0,0.5772758]
[1674002071583,0.321223,21207.0,21206.0,0.5772758]
[1674002071835,0.32227851,21207.0,21206.0,0.5772758]
[1674002072087,0.321223,21207.0,21206.0,0.5772758]
[1674002072336,0.321223,21207.0,21206.0,0.27074084]
[1674002073369,0.09105551,21207.0,21206.0,0.27074084]
[1674002073660,0.4106554,21207.0,21206.0,0.27074084]
[1674002074113,0.4106554,21207.0,21205.0,0.47448597]
[1674002074374,0.321223,21206.0,21205.0,0.47448597]
[1674002074625,0.09048791,21207.0,21205.0,0.19129606]
[1674002074882,0.09048791,21207.0,21204.0,0.47516661]
[1674002074883,0.00105551,21207.0,21204.0,0.00357661]
[1674002075138,0.321223,21206.0,21204.0,0.00357661]
[1674002075388,0.321223,21205.0,21204.0,0.00357661]
[1674002075894,0.321223,21205.0,21202.0,0.42521561]
[1674002076152,0.321223,21204.0,21202.0,0.42521561]
[1674002076401,0.321223,21203.0,21201.0,0.946959]
[1674002076639,0.321223,21202.0,21201.0,0.946959]
[1674002076908,0.7764827,21204.0,21202.0,0.001]
[1674002077154,0.7764827,21204.0,21201.0,0.471659]
[1674002077155,0.321223,21203.0,21201.0,0.471659]
[1674002077415,0.321223,21202.0,21201.0,0.001]
[1674002077680,0.321223,21202.0,21200.0,0.60136297]
[1674002077932,1.20804257,21204.0,21200.0,0.60136297]
[1674002078182,1.48894062,21204.0,21200.0,0.60136297]
[1674002078442,0.321223,21203.0,21200.0,0.60136297]
[1674002078730,1.3371207,21204.0,21200.0,0.471679]
[1674002078952,1.2481207,21204.0,21200.0,0.471679]
[1674002079204,0.321223,21203.0,21200.0,0.471679]
[1674002079456,0.321223,21202.0,21200.0,0.471679]
[1674002079706,0.471632,21203.0,21200.0,0.471679]
[1674002079958,0.321223,21202.0,21200.0,0.471679]
[1674002080211,0.321223,21201.0,21199.0,0.95028221]
[1674002080487,0.00105551,21202.0,21199.0,1.42229679]
[1674002080744,0.535632,21203.0,21199.0,1.42229679]
[1674002080745,0.064,21203.0,21199.0,0.94699679]
[1674002080991,0.064,21203.0,21199.0,1.07740864]
[1674002081515,0.00105551,21202.0,21199.0,0.94670221]
[1674002082270,0.009,21201.0,21199.0,0.94770221]
[1674002082767,0.009,21201.0,21199.0,0.94670221]
[1674002082768,0.19072595,21201.0,21199.0,0.94670221]
[1674002083054,0.32122271,21202.0,21199.0,0.94670221]
[1674002083055,0.33122271,21202.0,21199.0,0.94770221]
[1674002083309,0.32122271,21202.0,21199.0,0.94670221]
[1674002083559,0.325223,21201.0,21199.0,0.47599921]
[1674002083810,0.004,21201.0,21199.0,0.47499921]
[1674002084064,0.094,21201.0,21199.0,0.47499921]
[1674002084845,0.32122271,21202.0,21199.0,0.47499921]
[1674002085147,0.09105551,21202.0,21200.0,0.13041185]
[1674002085350,0.2,21203.0,21201.0,0.547575]
[1674002085602,0.2,21203.0,21202.0,0.3]
[1674002085857,0.2,21203.0,21202.0,0.943306]
[1674002086132,0.2,21203.0,21202.0,1.24390477]
[1674002086658,0.2,21203.0,21202.0,1.25397377]
[1674002086659,0.21,21203.0,21202.0,1.25397377]
[1674002086906,0.21,21203.0,21202.0,1.043306]
[1674002087154,0.2,21203.0,21202.0,0.743306]
[1674002087400,0.2,21203.0,21202.0,1.043306]
[1674002087645,0.2,21203.0,21202.0,0.743306]
[1674002088140,0.21,21203.0,21202.0,1.044306]
[1674002088666,0.21,21203.0,21202.0,0.994306]
[1674002089427,0.21,21203.0,21202.0,0.99461575]
[1674002089684,0.21,21203.0,21202.0,0.994306]
[1674002092000,0.21,21203.0,21202.0,0.694306]
[1674002093330,0.21,21203.0,21202.0,0.994306]
[1674002100177,0.01,21203.0,21202.0,0.794306]
[1674002101781,0.01,21203.0,21202.0,0.594306]
[1674002102162,0.01,21203.0,21202.0,1.065959]
[1674002103091,0.01,21203.0,21202.0,1.351227]
[1674002104411,0.01,21203.0,21202.0,1.141159]
[1674002104702,0.01,21203.0,21202.0,1.77082393]
[1674002104949,0.01,21203.0,21202.0,2.25538981]
[1674002105465,0.01,21203.0,21202.0,2.74984638]
[1674002105728,0.01,21203.0,21202.0,2.86237992]
[1674002106024,0.01,21203.0,21202.0,2.74984638]
[1674002106250,0.01,21203.0,21202.0,2.58781436]
[1674002106495,0.01,21203.0,21202.0,2.05988887]
[1674002108653,0.01,21203.0,21202.0,1.94736535]
[1674002108827,0.01,21203.0,21202.0,1.43729735]
[1674002109889,0.01,21203.0,21202.0,1.36209735]
[1674002110614,0.01,21203.0,21202.0,1.20569735]
[1674002111634,0.01,21203.0,21202.0,1.12979735]
[1674002113739,0.01,21203.0,21202.0,1.33986535]
[1674002115295,0.01,21203.0,21202.0,0.82979735]
[1674002115551,0.0954,21203.0,21202.0,0.294306]
[1674002115815,0.0954,21203.0,21202.0,0.001]
[1674002115816,0.81453038,21203.0,21202.0,0.001]
[1674002116071,0.77550646,21203.0,21202.0,0.001]
[1674002116377,0.85140646,21203.0,21202.0,0.001]
[1674002116596,1.47303746,21203.0,21202.0,0.001]
[1674002117113,1.46303746,21203.0,21200.0,0.471678]
[1674002117364,0.321223,21202.0,21200.0,0.471678]
[1674002117699,1.05581446,21203.0,21200.0,0.471678]
[1674002117700,0.321223,21201.0,21200.0,0.471678]
[1674002119176,0.410223,21201.0,21200.0,0.471678]
[1674002119435,0.410223,21201.0,21200.0,0.771678]
[1674002119436,0.380223,21201.0,21200.0,0.771678]
[1674002119696,0.380223,21201.0,21200.0,1.243376]
[1674002120267,0.380223,21201.0,21200.0,0.943376]
[1674002120748,0.380223,21201.0,21200.0,0.525998]
[1674002121262,0.388723,21201.0,21200.0,0.0543]
[1674002126776,0.69626984,21201.0,21198.0,0.47564293]
[1674002127024,0.321223,21200.0,21198.0,0.47564293]
[1674002127279,0.321258,21199.0,21198.0,0.47564293]
[1674002127535,0.40504684,21201.0,21198.0,0.47564293]
[1674002128156,0.321258,21200.0,21198.0,0.47564293]
[1674002128313,0.325258,21200.0,21198.0,0.47664293]
[1674002128575,0.321258,21199.0,21198.0,0.47564293]
[1674002128834,0.31604684,21201.0,21198.0,0.47564293]
[1674002129085,0.38004684,21201.0,21198.0,0.47564293]
[1674002129340,0.321258,21200.0,21198.0,0.47564293]
[1674002129602,0.38004684,21201.0,21198.0,0.47564293]
[1674002129868,0.31604684,21201.0,21198.0,0.47564293]
[1674002130124,0.32631351,21200.0,21198.0,0.47664293]
[1674002130387,0.321258,21199.0,21198.0,0.00491793]
[1674002130947,0.321258,21199.0,21198.0,0.00391793]
[1674002131722,0.384258,21199.0,21198.0,0.47565993]
[1674002131970,0.00105551,21200.0,21198.0,0.94740193]
[1674002132210,0.09,21199.0,21198.0,0.94740193]
[1674002132710,0.09,21199.0,21198.0,1.24740193]
[1674002132966,0.09105551,21199.0,21198.0,1.24740193]
[1674002133485,0.00105551,21199.0,21198.0,1.24740193]
[1674002133739,0.31604684,21201.0,21198.0,0.99858903]
[1674002133999,0.063,21199.0,21198.0,0.99858903]
[1674002134524,0.063,21199.0,21198.0,0.52684703]
[1674002136632,0.063,21199.0,21198.0,0.82684703]
[1674002137470,0.063,21199.0,21198.0,1.29858903]
[1674002140272,0.063,21199.0,21198.0,1.38094149]
[1674002140529,0.063,21199.0,21198.0,1.69695949]
[1674002142549,0.303,21199.0,21198.0,1.69695949]
[1674002142813,0.303,21199.0,21198.0,1.38094149]
[1674002143810,0.30405551,21199.0,21198.0,1.38094149]
[1674002144071,0.303,21199.0,21198.0,1.38094149]
[1674002144861,0.30405551,21199.0,21198.0,1.38094149]
[1674002145091,0.303,21199.0,21198.0,1.08094149]
[1674002145583,0.303,21199.0,21198.0,1.38094149]
[1674002146108,0.30405551,21199.0,21198.0,1.38094149]
[1674002146335,0.303,21199.0,21198.0,1.08094149]
[1674002146847,0.063,21199.0,21198.0,1.08094149]
[1674002147353,0.06405551,21199.0,21198.0,1.08094149]
[1674002147597,0.063,21199.0,21198.0,1.08094149]
[1674002148372,0.06405551,21199.0,21198.0,1.08094149]
[1674002148625,0.063,21199.0,21198.0,1.08094149]
[1674002148882,0.063,21199.0,21198.0,1.53094149]
[1674002149180,0.063,21199.0,21198.0,1.62105949]
[1674002149992,0.0629144,21199.0,21198.0,1.62105949]
[1674002151300,0.0629144,21199.0,21198.0,2.17772423]
[1674002151549,0.0629144,21199.0,21198.0,1.88508301]
[1674002152057,0.3029144,21199.0,21198.0,2.05299816]
[1674002152619,0.3029144,21199.0,21198.0,1.88508301]
[1674002152890,0.3029144,21199.0,21198.0,2.05299816]
[1674002153150,0.3029144,21199.0,21198.0,1.88508301]
[1674002154093,0.3029144,21199.0,21198.0,2.05299816]
[1674002154340,0.3029144,21199.0,21198.0,1.88508301]
[1674002154881,0.3029144,21199.0,21198.0,2.21411273]
[1674002155188,0.3029144,21199.0,21198.0,2.32604834]
[1674002155394,0.3029144,21199.0,21198.0,2.21503895]
[1674002156467,0.3029144,21199.0,21198.0,1.9783563]
[1674002156955,0.3029144,21199.0,21198.0,2.1037031]
[1674002157477,0.3029144,21199.0,21198.0,2.10373605]
[1674002157739,0.3029144,21199.0,21198.0,2.21506747]
[1674002158300,0.3029144,21199.0,21198.0,1.80952372]
[1674002158554,0.3029144,21199.0,21198.0,2.1045014]
[1674002158811,0.3029144,21199.0,21198.0,2.21582403]
[1674002159549,0.3029144,21199.0,21198.0,2.04698266]
[1674002160083,0.3029144,21199.0,21198.0,1.99190439]
[1674002160352,0.3029144,21199.0,21198.0,2.21579125]
[1674002160590,0.3029144,21199.0,21198.0,2.32683342]
[1674002161627,0.24749546,21199.0,21198.0,2.32844656]
[1674002162159,0.24749546,21199.0,21198.0,2.40351903]
[1674002162676,0.24749546,21199.0,21198.0,2.29248222]
[1674002162981,0.24,21199.0,21198.0,2.29248222]
[1674002163240,0.243,21199.0,21198.0,2.23795588]
[1674002163498,0.243,21199.0,21198.0,2.23795552]
[1674002163751,0.243,21199.0,21198.0,1.94300526]
[1674002164004,0.243,21199.0,21198.0,2.11181921]
[1674002164654,0.243,21199.0,21198.0,1.37905949]
[1674002164880,0.243,21199.0,21198.0,1.13894149]
[1674002166595,0.243,21199.0,21198.0,1.43894149]
[1674002167430,0.243,21199.0,21198.0,1.55148726]
[1674002167682,0.243,21199.0,21198.0,1.43894149]
[1674002170620,0.243,21199.0,21198.0,1.55148726]
[1674002171140,0.243,21199.0,21198.0,1.43894149]
[1674002171915,0.243,21199.0,21198.0,1.55148726]
[1674002172463,0.24405551,21199.0,21198.0,1.43894149]
[1674002172730,0.56531351,21199.0,21198.0,1.43894149]
[1674002173005,0.564258,21199.0,21198.0,1.43894149]
[1674002173569,0.243,21199.0,21198.0,1.43894149]
[1674002173842,0.564258,21199.0,21198.0,1.43894149]
[1674002174666,0.564258,21199.0,21198.0,1.13894149]
[1674002175143,0.564258,21199.0,21198.0,1.05658903]
[1674002175402,0.564258,21199.0,21198.0,1.35658903]
[1674002175656,0.564258,21199.0,21198.0,0.88484703]
[1674002175918,0.564258,21199.0,21198.0,1.05658903]
[1674002176668,0.564258,21199.0,21198.0,0.58484703]
[1674002177941,0.564258,21199.0,21198.0,0.58491634]
[1674002178187,0.564258,21199.0,21198.0,0.52684703]
[1674002178188,0.561258,21199.0,21198.0,0.52684703]
[1674002178433,0.564258,21199.0,21198.0,0.58084703]
[1674002178689,0.561258,21199.0,21198.0,0.52684703]
[1674002178943,0.56231351,21199.0,21198.0,0.52684703]
[1674002179197,0.59331351,21199.0,21198.0,0.05710503]
[1674002181268,0.592258,21199.0,21198.0,1.00058903]
[1674002181765,0.271,21199.0,21198.0,1.30065834]
[1674002183076,0.271,21199.0,21198.0,0.82891634]
[1674002183332,0.592258,21199.0,21198.0,0.82891634]
[1674002183599,0.592258,21199.0,21198.0,1.30065834]
[1674002183867,0.271,21199.0,21198.0,1.30065834]
[1674002185246,0.271,21199.0,21198.0,1.94856483]
[1674002185455,0.271,21199.0,21198.0,2.45515129]
[1674002185727,0.271,21199.0,21198.0,2.34260552]
[1674002186006,0.271,21199.0,21198.0,2.64317799]
[1674002186270,0.27088611,21199.0,21198.0,2.7542148]
[1674002186675,0.27088611,21199.0,21198.0,2.52914233]
[1674002186826,0.27088611,21199.0,21198.0,2.75225136]
[1674002187080,0.18993792,21199.0,21198.0,2.52714233]
[1674002187334,0.19293792,21199.0,21198.0,2.80721613]
[1674002188105,0.19293792,21199.0,21198.0,2.30062967]
[1674002188373,0.18993792,21199.0,21198.0,2.13459955]
[1674002188619,0.19293792,21199.0,21198.0,2.18959955]
[1674002190175,0.19293792,21199.0,21198.0,2.17077891]
[1674002190514,0.19293792,21199.0,21198.0,2.18957156]
[1674002190972,0.19293792,21199.0,21198.0,2.07703595]
[1674002191195,0.19293792,21199.0,21198.0,2.11449776]
[1674002191452,0.19293792,21199.0,21198.0,2.18957156]
[1674002191714,0.19293792,21199.0,21198.0,1.96449776]
[1674002191953,0.19293792,21199.0,21198.0,2.18957156]
[1674002192212,0.19293792,21199.0,21198.0,2.189569]
[1674002192470,0.19293792,21199.0,21198.0,1.9644952]
[1674002192729,0.19293792,21199.0,21198.0,2.07702968]
[1674002193039,0.19293792,21199.0,21198.0,1.9644952]
[1674002193232,0.19293792,21199.0,21198.0,2.07703047]
[1674002193492,0.19399343,21199.0,21198.0,1.05358903]
[1674002194023,0.19293792,21199.0,21198.0,1.05358903]
[1674002194764,0.19293792,21199.0,21198.0,1.35358903]
[1674002195018,0.19399343,21199.0,21198.0,1.35358903]
[1674002195279,0.19293792,21199.0,21198.0,1.35358903]
[1674002196591,0.19399343,21199.0,21198.0,1.35358903]
[1674002196860,0.19293792,21199.0,21198.0,1.35358903]
[1674002198202,0.19293792,21199.0,21198.0,1.35422729]
[1674002198459,0.51419592,21199.0,21198.0,1.35358903]
[1674002199254,0.51525143,21199.0,21198.0,1.35358903]
[1674002199561,0.51419592,21199.0,21198.0,1.05358903]
[1674002200081,0.51419592,21199.0,21198.0,0.58184703]
[1674002200605,0.51419592,21199.0,21198.0,0.11010503]
[1674002201610,0.51525143,21199.0,21198.0,0.11010503]
[1674002202137,0.51419592,21199.0,21198.0,0.11010503]
[1674002202391,0.51419592,21199.0,21198.0,0.05510503]
[1674002202392,0.51225143,21199.0,21198.0,0.05510503]
[1674002202649,0.51519592,21199.0,21198.0,1.04958903]
[1674002202920,0.51119592,21199.0,21198.0,0.99858903]
[1674002203186,0.51519592,21199.0,21198.0,1.04958903]
[1674002203696,0.51519592,21199.0,21198.0,0.10610503]
[1674002204207,0.51519592,21199.0,21198.0,1.04958903]
[1674002204459,0.51519592,21199.0,21198.0,1.34958903]
[1674002204724,0.19393792,21199.0,21198.0,1.34958903]
[1674002206515,0.19393792,21199.0,21198.0,1.58970703]
[1674002207030,0.19393792,21199.0,21198.0,1.34958903]
[1674002207288,0.19393792,21199.0,21198.0,1.58970703]
[1674002207814,0.19393792,21199.0,21198.0,1.7022423]
[1674002209482,0.19393792,21199.0,21198.0,2.49803683]
[1674002209753,0.19393792,21199.0,21198.0,2.64747574]
[1674002210329,0.19393792,21199.0,21198.0,2.53646692]